[Event "Live Chess"]
[Site "Chess.com"]
[Date "2023.05.20"]
[Round "-"]
[White "BillythekidFellowes"]
[Black "Goblinbasher"]
[Result "1-0"]
[WhiteElo "2035"]
[BlackElo "1217"]
[TimeControl "300"]
[EndTime "13:15:44 PDT"]
[Termination "BillythekidFellowes won on time"]

1. e4 {[%clk 0:04:58.4]} 1... c5 {[%clk 0:04:58]} 2. Nf3 {[%clk 0:04:57.6]} 2...
e6 {[%clk 0:04:57]} 3. c3 {[%clk 0:04:56]} 3... d5 {[%clk 0:04:54.5]} 4. exd5
{[%clk 0:04:55.5]} 4... exd5 {[%clk 0:04:53.3]} 5. d4 {[%clk 0:04:55.4]} 5... c4
{[%clk 0:04:50.8]} 6. Bg5 {[%clk 0:04:52]} 6... f6 {[%clk 0:04:25.6]} 7. Bf4
{[%clk 0:04:49.9]} 7... Bd6 {[%clk 0:04:20.5]} 8. Bxd6 {[%clk 0:04:47.1]} 8...
Qxd6 {[%clk 0:04:19.5]} 9. Nbd2 {[%clk 0:04:46.2]} 9... Bg4 {[%clk 0:04:12.8]}
10. Be2 {[%clk 0:04:44.7]} 10... Nd7 {[%clk 0:04:09]} 11. O-O {[%clk 0:04:42.4]}
11... Ne7 {[%clk 0:03:58.8]} 12. h3 {[%clk 0:04:36.6]} 12... Be6 {[%clk
0:03:51.3]} 13. Re1 {[%clk 0:04:33.7]} 13... O-O {[%clk 0:03:50]} 14. Bf1 {[%clk
0:04:22]} 14... Ng6 {[%clk 0:03:46.9]} 15. b3 {[%clk 0:04:20.2]} 15... b5 {[%clk
0:03:44.3]} 16. a4 {[%clk 0:04:17.4]} 16... a6 {[%clk 0:03:41.4]} 17. axb5
{[%clk 0:04:09]} 17... axb5 {[%clk 0:03:39.8]} 18. bxc4 {[%clk 0:04:06.6]} 18...
bxc4 {[%clk 0:03:38]} 19. Qc2 {[%clk 0:03:57.8]} 19... Ne7 {[%clk 0:02:45.1]}
20. g3 {[%clk 0:03:33.6]} 20... Nf5 {[%clk 0:02:36.5]} 21. Kg2 {[%clk
0:03:30.6]} 21... Ne7 {[%clk 0:02:21.8]} 22. Rab1 {[%clk 0:03:08.9]} 22... Bf5
{[%clk 0:02:10.4]} 23. Ne4 {[%clk 0:02:47]} 23... Bxe4 {[%clk 0:02:03]} 24. Rxe4
{[%clk 0:02:40.8]} 24... dxe4 {[%clk 0:01:58.3]} 25. Bxc4+ {[%clk 0:02:38.8]}
25... Kh8 {[%clk 0:01:50]} 26. Qxe4 {[%clk 0:02:36]} 26... f5 {[%clk 0:01:35.5]}
27. Qh4 {[%clk 0:02:32.2]} 27... Ng6 {[%clk 0:01:28.6]} 28. Qh5 {[%clk
0:02:28.8]} 28... Qf6 {[%clk 0:00:51.3]} 29. Ng5 {[%clk 0:02:24.1]} 29... Nf4+
{[%clk 0:00:29.8]} 30. gxf4 {[%clk 0:02:21]} 30... Qg6 {[%clk 0:00:23.6]} 31.
Bf7 {[%clk 0:02:11.8]} 31... Rxf7 {[%clk 0:00:06.7]} 32. Qxg6 {[%clk 0:02:02.3]}
32... Kg8 {[%clk 0:00:06]} 33. Qxf7+ {[%clk 0:01:59.1]} 1-0

[Event "Live Chess"]
[Site "Chess.com"]
[Date "2023.05.20"]
[Round "-"]
[White "Long1968"]
[Black "PiotrD11"]
[Result "0-1"]
[WhiteElo "1183"]
[BlackElo "1351"]
[TimeControl "300"]
[EndTime "13:15:45 PDT"]
[Termination "PiotrD11 won on time"]

1. e4 {[%clk 0:04:56.8]} 1... d5 {[%clk 0:04:59.9]} 2. exd5 {[%clk 0:04:53.1]}
2... Nf6 {[%clk 0:04:59.5]} 3. Bb5+ {[%clk 0:04:50.4]} 3... Bd7 {[%clk
0:04:57.4]} 4. Bc4 {[%clk 0:04:48.3]} 4... c6 {[%clk 0:04:53]} 5. dxc6 {[%clk
0:04:44.6]} 5... Nxc6 {[%clk 0:04:52.7]} 6. Nf3 {[%clk 0:04:40.7]} 6... e6
{[%clk 0:04:52]} 7. d4 {[%clk 0:04:35.6]} 7... Bd6 {[%clk 0:04:42.8]} 8. O-O
{[%clk 0:04:31.6]} 8... O-O {[%clk 0:04:42.4]} 9. Nc3 {[%clk 0:04:26.9]} 9...
Qc7 {[%clk 0:04:36.3]} 10. h3 {[%clk 0:04:16.8]} 10... Nb4 {[%clk 0:04:26.7]}
11. Bb3 {[%clk 0:04:07]} 11... a5 {[%clk 0:04:24.1]} 12. a3 {[%clk 0:03:48.4]}
12... Nbd5 {[%clk 0:04:22.8]} 13. Nxd5 {[%clk 0:03:39.3]} 13... Nxd5 {[%clk
0:04:22]} 14. Re1 {[%clk 0:03:17.1]} 14... a4 {[%clk 0:04:13.5]} 15. Ba2 {[%clk
0:03:10.1]} 15... Rac8 {[%clk 0:04:06]} 16. c4 {[%clk 0:02:57]} 16... Nf6 {[%clk
0:03:49.8]} 17. c5 {[%clk 0:02:49.4]} 17... Be7 {[%clk 0:03:47.2]} 18. Ne5
{[%clk 0:02:40.4]} 18... Bc6 {[%clk 0:03:40.4]} 19. Bf4 {[%clk 0:02:21.9]} 19...
Nd5 {[%clk 0:03:26.2]} 20. Bh2 {[%clk 0:01:57.8]} 20... Bf6 {[%clk 0:03:15.5]}
21. Ng6 {[%clk 0:01:41.1]} 21... Qd8 {[%clk 0:03:10.9]} 22. Nxf8 {[%clk
0:01:35.6]} 22... Qxf8 {[%clk 0:03:10.8]} 23. Be5 {[%clk 0:01:22.1]} 23... Rd8
{[%clk 0:03:04.9]} 24. Qd2 {[%clk 0:00:34.7]} 24... Bxe5 {[%clk 0:02:44.8]} 25.
Rxe5 {[%clk 0:00:25]} 25... Qe7 {[%clk 0:02:33.3]} 26. Rae1 {[%clk 0:00:16]}
26... Kh8 {[%clk 0:02:14.8]} 27. Bxd5 {[%clk 0:00:13.1]} 27... Bxd5 {[%clk
0:02:09.5]} 28. Qf4 {[%clk 0:00:06.5]} 28... f6 {[%clk 0:02:05.1]} 29. R5e3
{[%clk 0:00:02]} 29... Bc6 {[%clk 0:01:53.5]} 0-1

[Event "Live Chess"]
[Site "Chess.com"]
[Date "2023.05.20"]
[Round "-"]
[White "gregor1903"]
[Black "matt1979"]
[Result "1-0"]
[WhiteElo "1568"]
[BlackElo "1462"]
[TimeControl "300"]
[EndTime "13:15:53 PDT"]
[Termination "gregor1903 won by resignation"]

1. e4 {[%clk 0:04:57.2]} 1... c5 {[%clk 0:04:57.8]} 2. d4 {[%clk 0:04:54.8]}
2... cxd4 {[%clk 0:04:56.3]} 3. c3 {[%clk 0:04:54]} 3... Nf6 {[%clk 0:04:54.4]}
4. e5 {[%clk 0:04:52.2]} 4... Nd5 {[%clk 0:04:52.9]} 5. cxd4 {[%clk 0:04:50.5]}
5... Nc6 {[%clk 0:04:51.6]} 6. Nf3 {[%clk 0:04:45.6]} 6... d6 {[%clk 0:04:49.9]}
7. Bc4 {[%clk 0:04:43.6]} 7... Nb6 {[%clk 0:04:46.2]} 8. Bb3 {[%clk 0:04:42.4]}
8... dxe5 {[%clk 0:04:38]} 9. dxe5 {[%clk 0:04:31.2]} 9... Qxd1+ {[%clk
0:04:35.6]} 10. Bxd1 {[%clk 0:04:30]} 10... Bg4 {[%clk 0:04:32.3]} 11. Bf4
{[%clk 0:04:23.5]} 11... O-O-O {[%clk 0:04:26.8]} 12. Nc3 {[%clk 0:04:19.6]}
12... e6 {[%clk 0:04:14.3]} 13. O-O {[%clk 0:04:15.7]} 13... h6 {[%clk
0:04:05.9]} 14. Re1 {[%clk 0:04:11.9]} 14... g5 {[%clk 0:04:03.6]} 15. Bg3
{[%clk 0:04:03.5]} 15... Bg7 {[%clk 0:03:59.9]} 16. Nb5 {[%clk 0:03:51.9]} 16...
Bf8 {[%clk 0:03:48.6]} 17. Rc1 {[%clk 0:03:47.9]} 17... a6 {[%clk 0:03:42.8]}
18. Na7+ {[%clk 0:03:38.5]} 18... Kc7 {[%clk 0:03:39.7]} 19. Nxc6 {[%clk
0:03:36]} 19... bxc6 {[%clk 0:03:37.5]} 20. h3 {[%clk 0:03:25.8]} 20... Bxf3
{[%clk 0:03:23.1]} 21. Bxf3 {[%clk 0:03:23.5]} 21... Bb4 {[%clk 0:03:20]} 22.
Rxc6+ {[%clk 0:03:19.1]} 22... Kd7 {[%clk 0:03:17.2]} 23. Rd1+ {[%clk
0:03:16.2]} 23... Ke7 {[%clk 0:03:06.5]} 24. Rxd8 {[%clk 0:03:07.6]} 24... Rxd8
{[%clk 0:03:04.7]} 25. Rxb6 {[%clk 0:03:06.2]} 25... Bc5 {[%clk 0:03:01.4]} 26.
Rxa6 {[%clk 0:03:00.1]} 26... h5 {[%clk 0:02:53.8]} 27. h4 {[%clk 0:02:47.2]}
27... g4 {[%clk 0:02:50.5]} 28. Be4 {[%clk 0:02:42.5]} 28... Rd1+ {[%clk
0:02:44.9]} 29. Kh2 {[%clk 0:02:39.9]} 29... Rd2 {[%clk 0:02:41.9]} 30. f3
{[%clk 0:02:27.4]} 30... gxf3 {[%clk 0:02:36.9]} 31. Bxf3 {[%clk 0:02:26.3]}
31... Rxb2 {[%clk 0:02:33.1]} 32. Bxh5 {[%clk 0:02:25]} 1-0

[Event "Live Chess"]
[Site "Chess.com"]
[Date "2023.05.20"]
[Round "-"]
[White "anatoliy10912"]
[Black "DerbyKnight"]
[Result "0-1"]
[WhiteElo "1556"]
[BlackElo "1564"]
[TimeControl "300"]
[EndTime "13:16:08 PDT"]
[Termination "DerbyKnight won by resignation"]

1. d4 {[%clk 0:04:57.8]} 1... d5 {[%clk 0:04:58.5]} 2. c4 {[%clk 0:04:56.6]}
2... e6 {[%clk 0:04:57.2]} 3. Nc3 {[%clk 0:04:54.7]} 3... Nf6 {[%clk 0:04:56]}
4. e3 {[%clk 0:04:53.9]} 4... a6 {[%clk 0:04:51.4]} 5. Nf3 {[%clk 0:04:52.8]}
5... dxc4 {[%clk 0:04:49]} 6. Bxc4 {[%clk 0:04:51.6]} 6... b5 {[%clk 0:04:48.6]}
7. Bb3 {[%clk 0:04:51.1]} 7... c5 {[%clk 0:04:47.7]} 8. dxc5 {[%clk 0:04:48.2]}
8... Qxd1+ {[%clk 0:04:44.8]} 9. Nxd1 {[%clk 0:04:45.8]} 9... Bxc5 {[%clk
0:04:43]} 10. a3 {[%clk 0:04:43.4]} 10... Bb7 {[%clk 0:04:38.7]} 11. Ke2 {[%clk
0:04:40.7]} 11... O-O {[%clk 0:04:33.7]} 12. Bd2 {[%clk 0:04:39.7]} 12... Nbd7
{[%clk 0:04:32.1]} 13. Bc3 {[%clk 0:04:38.8]} 13... Nd5 {[%clk 0:04:24.3]} 14.
Bd4 {[%clk 0:04:36.8]} 14... Be7 {[%clk 0:04:14.6]} 15. Nc3 {[%clk 0:04:35.4]}
15... Nxc3+ {[%clk 0:04:09.5]} 16. bxc3 {[%clk 0:04:35.3]} 16... Nc5 {[%clk
0:03:38.7]} 17. Ba2 {[%clk 0:04:26]} 17... Be4 {[%clk 0:03:30.3]} 18. Rhd1
{[%clk 0:04:22.1]} 18... Na4 {[%clk 0:03:24]} 19. Rd2 {[%clk 0:04:10.2]} 19...
Rac8 {[%clk 0:03:18.7]} 20. Bb3 {[%clk 0:03:15.9]} 20... Nxc3+ {[%clk
0:03:14.6]} 21. Bxc3 {[%clk 0:03:14.7]} 21... Rxc3 {[%clk 0:03:09.9]} 22. Bd1
{[%clk 0:03:09.5]} 22... Rd8 {[%clk 0:03:02.6]} 23. Rxd8+ {[%clk 0:03:02.1]}
23... Bxd8 {[%clk 0:03:01.5]} 24. Nd4 {[%clk 0:03:00.3]} 24... h6 {[%clk
0:02:56.7]} 25. f3 {[%clk 0:02:59.4]} 25... Bd5 {[%clk 0:02:39.5]} 26. Kd2
{[%clk 0:02:52.4]} 26... Rc8 {[%clk 0:02:33.3]} 27. e4 {[%clk 0:02:49.4]} 27...
Bc4 {[%clk 0:02:30.6]} 28. Be2 {[%clk 0:02:47.5]} 28... Bb6 {[%clk 0:02:21]} 29.
Bxc4 {[%clk 0:02:42]} 29... Rxc4 {[%clk 0:02:18]} 30. Nb3 {[%clk 0:02:37.1]}
30... Kf8 {[%clk 0:02:10.4]} 31. Rc1 {[%clk 0:02:29.8]} 31... Rxc1 {[%clk
0:02:06.8]} 32. Nxc1 {[%clk 0:02:29.1]} 32... Ke7 {[%clk 0:02:06.1]} 33. Nd3
{[%clk 0:02:26.2]} 33... Kd6 {[%clk 0:02:04.8]} 34. Nb4 {[%clk 0:02:21.6]} 34...
Kc5 {[%clk 0:01:57.5]} 35. Kd3 {[%clk 0:02:18.7]} 35... a5 {[%clk 0:01:53.7]}
36. Nc2 {[%clk 0:02:16.1]} 36... b4 {[%clk 0:01:49.7]} 37. a4 {[%clk 0:02:09.6]}
37... b3 {[%clk 0:01:41.9]} 38. Na3 {[%clk 0:02:04]} 38... Kb4 {[%clk
0:01:39.2]} 39. Nc4 {[%clk 0:02:01.3]} 39... Bd8 {[%clk 0:01:32]} 40. e5 {[%clk
0:01:51.7]} 40... Bg5 {[%clk 0:01:24.2]} 41. Nd6 {[%clk 0:01:40.9]} 41... Kxa4
{[%clk 0:01:14.5]} 42. Kc3 {[%clk 0:01:35.8]} 42... Ka3 {[%clk 0:01:09.1]} 43.
Nc4+ {[%clk 0:01:34.8]} 43... Ka2 {[%clk 0:01:06.1]} 44. Nb2 {[%clk 0:01:13.5]}
44... Bc1 {[%clk 0:01:00]} 45. Nd3 {[%clk 0:01:07.6]} 45... b2 {[%clk
0:00:56.7]} 0-1

[Event "Live Chess"]
[Site "Chess.com"]
[Date "2023.05.20"]
[Round "-"]
[White "Jonmill"]
[Black "Bill0007"]
[Result "0-1"]
[WhiteElo "1237"]
[BlackElo "1518"]
[TimeControl "300"]
[EndTime "13:16:09 PDT"]
[Termination "Bill0007 won by resignation"]

1. e4 {[%clk 0:04:58.7]} 1... d5 {[%clk 0:04:56.4]} 2. exd5 {[%clk 0:04:57.2]}
2... Nf6 {[%clk 0:04:55.1]} 3. d4 {[%clk 0:04:54.6]} 3... Nxd5 {[%clk
0:04:52.6]} 4. Nf3 {[%clk 0:04:53.8]} 4... Bg4 {[%clk 0:04:47.8]} 5. c4 {[%clk
0:04:47.8]} 5... Nf6 {[%clk 0:04:39.3]} 6. h3 {[%clk 0:04:45.8]} 6... Bh5 {[%clk
0:04:34.4]} 7. Be3 {[%clk 0:04:33.9]} 7... Nc6 {[%clk 0:04:29.5]} 8. Qb3 {[%clk
0:04:22.8]} 8... Bxf3 {[%clk 0:04:10.8]} 9. gxf3 {[%clk 0:04:21.8]} 9... Nxd4
{[%clk 0:03:56.2]} 10. Qc3 {[%clk 0:04:14.1]} 10... Nxf3+ {[%clk 0:03:52.5]} 0-1

[Event "Live Chess"]
[Site "Chess.com"]
[Date "2023.05.20"]
[Round "-"]
[White "McSlash1"]
[Black "Missedidea"]
[Result "0-1"]
[WhiteElo "2045"]
[BlackElo "1795"]
[TimeControl "300"]
[EndTime "13:16:22 PDT"]
[Termination "Missedidea won by resignation"]

1. e4 {[%clk 0:04:59.4]} 1... c5 {[%clk 0:04:57.9]} 2. Nf3 {[%clk 0:04:57.3]}
2... d6 {[%clk 0:04:56.4]} 3. d4 {[%clk 0:04:57.2]} 3... cxd4 {[%clk 0:04:54]}
4. Nxd4 {[%clk 0:04:57.1]} 4... Nf6 {[%clk 0:04:52]} 5. Nc3 {[%clk 0:04:56.4]}
5... g6 {[%clk 0:04:50.4]} 6. Be3 {[%clk 0:04:55.5]} 6... Bg7 {[%clk 0:04:49.4]}
7. f3 {[%clk 0:04:55.1]} 7... O-O {[%clk 0:04:47.1]} 8. Qd2 {[%clk 0:04:54.7]}
8... Nc6 {[%clk 0:04:45.6]} 9. Bc4 {[%clk 0:04:54.4]} 9... Bd7 {[%clk
0:04:43.3]} 10. O-O-O {[%clk 0:04:53.9]} 10... Rc8 {[%clk 0:04:41.1]} 11. Bb3
{[%clk 0:04:53.5]} 11... Ne5 {[%clk 0:04:35.4]} 12. h4 {[%clk 0:04:52.5]} 12...
h5 {[%clk 0:04:33.6]} 13. Bg5 {[%clk 0:04:51.7]} 13... Nc4 {[%clk 0:04:28.9]}
14. Bxc4 {[%clk 0:04:49.7]} 14... Rxc4 {[%clk 0:04:27.3]} 15. g4 {[%clk
0:04:45.8]} 15... hxg4 {[%clk 0:04:21.5]} 16. h5 {[%clk 0:04:33.2]} 16... Nxh5
{[%clk 0:04:15.1]} 17. Rxh5 {[%clk 0:04:23]} 17... Rxd4 {[%clk 0:04:11.5]} 18.
Qh2 {[%clk 0:04:10.3]} 18... Rxd1+ {[%clk 0:04:09.5]} 19. Kxd1 {[%clk
0:04:09.7]} 19... gxh5 {[%clk 0:04:07.7]} 20. Qxh5 {[%clk 0:04:09.3]} 20... f6
{[%clk 0:03:55.3]} 21. Be3 {[%clk 0:04:06.2]} 21... Qe8 {[%clk 0:03:47]} 22. Qh4
{[%clk 0:03:59.9]} 22... Qg6 {[%clk 0:03:41.9]} 23. Nd5 {[%clk 0:03:59.3]} 23...
Kf7 {[%clk 0:03:32.4]} 24. f4 {[%clk 0:03:56.4]} 24... Qxe4 {[%clk 0:03:23.1]}
25. c4 {[%clk 0:03:51.6]} 25... Rh8 {[%clk 0:03:16.7]} 26. Qg3 {[%clk
0:03:48.5]} 26... Rh3 {[%clk 0:03:14.2]} 27. Qf2 {[%clk 0:03:42.1]} 27... Rh1+
{[%clk 0:03:11.2]} 28. Kd2 {[%clk 0:03:41.4]} 28... Qxc4 {[%clk 0:03:01]} 29.
Nc3 {[%clk 0:03:28.1]} 29... f5 {[%clk 0:02:54.2]} 30. Kc2 {[%clk 0:03:08.9]}
30... Bxc3 {[%clk 0:02:50.9]} 31. bxc3 {[%clk 0:03:05.1]} 31... Qxa2+ {[%clk
0:02:49.2]} 0-1

[Event "Live Chess"]
[Site "Chess.com"]
[Date "2023.05.20"]
[Round "-"]
[White "tehanu"]
[Black "Greenbecker"]
[Result "0-1"]
[WhiteElo "1157"]
[BlackElo "1628"]
[TimeControl "300"]
[EndTime "13:16:24 PDT"]
[Termination "Greenbecker won by resignation"]

1. e4 {[%clk 0:04:56.6]} 1... e6 {[%clk 0:04:58.8]} 2. d4 {[%clk 0:04:38.1]}
2... d5 {[%clk 0:04:57]} 3. e5 {[%clk 0:04:33.1]} 3... c5 {[%clk 0:04:55]} 4. c3
{[%clk 0:04:24.6]} 4... Nc6 {[%clk 0:04:53]} 5. Nf3 {[%clk 0:04:22.8]} 5... cxd4
{[%clk 0:04:48.7]} 6. cxd4 {[%clk 0:04:21.5]} 6... Bd7 {[%clk 0:04:47.8]} 7. Nc3
{[%clk 0:04:19.9]} 7... Rc8 {[%clk 0:04:46.6]} 8. Be2 {[%clk 0:04:17.8]} 8...
Bb4 {[%clk 0:04:42.8]} 9. O-O {[%clk 0:04:15.7]} 9... Nge7 {[%clk 0:04:41.4]}
10. Bd2 {[%clk 0:04:11.7]} 10... Nf5 {[%clk 0:04:40.1]} 11. Be3 {[%clk
0:04:07.6]} 11... Nxe3 {[%clk 0:04:38.5]} 12. fxe3 {[%clk 0:04:06.4]} 12... Qe7
{[%clk 0:04:37.5]} 13. Bd3 {[%clk 0:04:05.1]} 13... g6 {[%clk 0:04:36]} 14. Qe1
{[%clk 0:04:00.1]} 14... h5 {[%clk 0:04:30.7]} 15. Qh4 {[%clk 0:03:56.2]} 15...
Qxh4 {[%clk 0:04:28.4]} 16. Nxh4 {[%clk 0:03:56.1]} 16... Bxc3 {[%clk
0:04:24.1]} 17. bxc3 {[%clk 0:03:54.4]} 17... Ne7 {[%clk 0:04:23.2]} 18. Rac1
{[%clk 0:03:52]} 18... O-O {[%clk 0:04:17.8]} 19. c4 {[%clk 0:03:46.5]} 19...
dxc4 {[%clk 0:04:14.2]} 20. Rxc4 {[%clk 0:03:46.4]} 20... Rxc4 {[%clk
0:04:09.2]} 21. Bxc4 {[%clk 0:03:28.4]} 21... Rc8 {[%clk 0:04:07.2]} 22. Bb3
{[%clk 0:03:26.8]} 22... Bc6 {[%clk 0:03:47.4]} 23. Nf3 {[%clk 0:03:25]} 23...
Nd5 {[%clk 0:03:39.4]} 24. Ng5 {[%clk 0:03:18.7]} 24... Nxe3 {[%clk 0:03:32]}
25. Rxf7 {[%clk 0:03:17]} 25... Bd5 {[%clk 0:03:22]} 26. Bxd5 {[%clk 0:03:07.5]}
26... exd5 {[%clk 0:03:12]} 27. Rf6 {[%clk 0:03:05.6]} 27... Rc1+ {[%clk
0:03:04.9]} 28. Kf2 {[%clk 0:03:00.1]} 28... Ng4+ {[%clk 0:03:03.9]} 29. Kg3
{[%clk 0:02:58.1]} 29... Nxf6 {[%clk 0:03:02.4]} 30. exf6 {[%clk 0:02:58]} 30...
Rc2 {[%clk 0:02:54.3]} 31. Ne6 {[%clk 0:02:53.7]} 31... Kf7 {[%clk 0:02:49.8]}
32. Nf4 {[%clk 0:02:52.9]} 32... Kxf6 {[%clk 0:02:45.8]} 33. Nxd5+ {[%clk
0:02:49.7]} 33... Ke6 {[%clk 0:02:41.1]} 34. Nf4+ {[%clk 0:02:48.5]} 34... Kf7
{[%clk 0:02:38.9]} 35. d5 {[%clk 0:02:44.2]} 35... Rxa2 {[%clk 0:02:37.3]} 36.
Nd3 {[%clk 0:02:39.1]} 36... Rd2 {[%clk 0:02:33.2]} 37. Nb4 {[%clk 0:02:35.5]}
37... Rd4 {[%clk 0:02:29.9]} 38. Nc2 {[%clk 0:02:33.9]} 38... Rxd5 {[%clk
0:02:28.7]} 39. Ne3 {[%clk 0:02:33.3]} 39... Rc5 {[%clk 0:02:23]} 40. Kf4 {[%clk
0:02:30.9]} 40... b5 {[%clk 0:02:20.3]} 41. g4 {[%clk 0:02:28.7]} 41... hxg4
{[%clk 0:02:18.6]} 42. Nxg4 {[%clk 0:02:27.2]} 42... Rc4+ {[%clk 0:02:16.2]} 43.
Kg5 {[%clk 0:02:25.7]} 43... Rxg4+ {[%clk 0:02:14.5]} 44. Kxg4 {[%clk
0:02:24.4]} 44... a5 {[%clk 0:02:13.8]} 0-1

[Event "Live Chess"]
[Site "Chess.com"]
[Date "2023.05.20"]
[Round "-"]
[White "kevinmilleruk"]
[Black "boilerboy1"]
[Result "1-0"]
[WhiteElo "1143"]
[BlackElo "1036"]
[TimeControl "300"]
[EndTime "13:16:27 PDT"]
[Termination "kevinmilleruk won on time"]

1. c4 {[%clk 0:04:59]} 1... g6 {[%clk 0:04:52]} 2. d4 {[%clk 0:04:58.3]} 2...
Bg7 {[%clk 0:04:51.1]} 3. Nc3 {[%clk 0:04:57.8]} 3... c5 {[%clk 0:04:48.7]} 4.
dxc5 {[%clk 0:04:54.2]} 4... Qa5 {[%clk 0:04:45.4]} 5. Bd2 {[%clk 0:04:52]} 5...
Qxc5 {[%clk 0:04:43]} 6. Nf3 {[%clk 0:04:50.5]} 6... Qxc4 {[%clk 0:04:37.1]} 7.
e4 {[%clk 0:04:47.1]} 7... Qc7 {[%clk 0:04:32.3]} 8. g3 {[%clk 0:04:45.3]} 8...
a6 {[%clk 0:04:28.6]} 9. Bg2 {[%clk 0:04:44.6]} 9... Nf6 {[%clk 0:04:24.4]} 10.
O-O {[%clk 0:04:41.4]} 10... O-O {[%clk 0:04:22.2]} 11. Bg5 {[%clk 0:04:39.8]}
11... Nc6 {[%clk 0:04:12]} 12. Bxf6 {[%clk 0:04:37.3]} 12... Bxf6 {[%clk
0:04:09.9]} 13. Nd5 {[%clk 0:04:36.9]} 13... Qd6 {[%clk 0:03:58.5]} 14. a3
{[%clk 0:04:23.1]} 14... Bxb2 {[%clk 0:03:53.5]} 15. Ra2 {[%clk 0:04:12.9]}
15... Bg7 {[%clk 0:03:50.4]} 16. a4 {[%clk 0:04:11]} 16... a5 {[%clk 0:03:41.9]}
17. Nh4 {[%clk 0:04:01.4]} 17... Nb4 {[%clk 0:03:35.1]} 18. Rd2 {[%clk
0:03:41.8]} 18... Qc5 {[%clk 0:03:00.3]} 19. Re1 {[%clk 0:03:00.9]} 19... Nxd5
{[%clk 0:02:56.8]} 20. Rxd5 {[%clk 0:02:58.1]} 20... Qb4 {[%clk 0:02:53.3]} 21.
Bh3 {[%clk 0:02:52.8]} 21... e6 {[%clk 0:02:45.3]} 22. Rb5 {[%clk 0:02:44.4]}
22... Qd4 {[%clk 0:02:23]} 23. Nf3 {[%clk 0:01:47.9]} 23... Qc3 {[%clk
0:02:11.1]} 24. e5 {[%clk 0:01:41.3]} 24... Ra7 {[%clk 0:01:47.5]} 25. Bg2
{[%clk 0:01:38.6]} 25... d6 {[%clk 0:01:34.2]} 26. exd6 {[%clk 0:01:36.4]} 26...
Bd7 {[%clk 0:01:31.7]} 27. Rb3 {[%clk 0:01:31.3]} 27... Qc5 {[%clk 0:00:45.5]}
28. Nh4 {[%clk 0:01:24.5]} 28... Bxa4 {[%clk 0:00:36.7]} 29. Ree3 {[%clk
0:01:17.7]} 29... Bxb3 {[%clk 0:00:33.2]} 30. Rxb3 {[%clk 0:01:17.1]} 30... b6
{[%clk 0:00:29.8]} 31. Nf3 {[%clk 0:01:12.4]} 31... Rd7 {[%clk 0:00:20.6]} 32.
Ne1 {[%clk 0:01:06.9]} 32... Rxd6 {[%clk 0:00:18.3]} 33. Qf3 {[%clk 0:01:03.3]}
33... Qc1 {[%clk 0:00:11.1]} 34. Kf1 {[%clk 0:01:00.1]} 34... Rd1 {[%clk
0:00:05.9]} 35. Re3 {[%clk 0:00:58.5]} 1-0

[Event "Live Chess"]
[Site "Chess.com"]
[Date "2023.05.20"]
[Round "-"]
[White "raminguy"]
[Black "LanceMaster23"]
[Result "1-0"]
[WhiteElo "1968"]
[BlackElo "1861"]
[TimeControl "300"]
[EndTime "13:16:35 PDT"]
[Termination "raminguy won on time"]

1. d4 {[%clk 0:04:58.6]} 1... Nf6 {[%clk 0:04:58.7]} 2. Nc3 {[%clk 0:04:57.8]}
2... d5 {[%clk 0:04:58.2]} 3. Bf4 {[%clk 0:04:56.8]} 3... Bf5 {[%clk 0:04:57.8]}
4. e3 {[%clk 0:04:55.7]} 4... e6 {[%clk 0:04:57.4]} 5. Nf3 {[%clk 0:04:54.9]}
5... Be7 {[%clk 0:04:55.1]} 6. Ne5 {[%clk 0:04:52.9]} 6... c6 {[%clk 0:04:52.1]}
7. g4 {[%clk 0:04:51.9]} 7... Bg6 {[%clk 0:04:49.7]} 8. h4 {[%clk 0:04:51.6]}
8... h6 {[%clk 0:04:30.5]} 9. Nxg6 {[%clk 0:04:50.3]} 9... fxg6 {[%clk
0:04:30.4]} 10. Qd3 {[%clk 0:04:49.5]} 10... Kf7 {[%clk 0:04:24.5]} 11. h5
{[%clk 0:04:48.1]} 11... g5 {[%clk 0:04:21.4]} 12. Qg6+ {[%clk 0:04:46.5]} 12...
Kf8 {[%clk 0:04:20.9]} 13. Be5 {[%clk 0:04:40.8]} 13... Qe8 {[%clk 0:04:16.9]}
14. Bxf6 {[%clk 0:04:37.3]} 14... Bxf6 {[%clk 0:04:08.7]} 15. Qd3 {[%clk
0:04:35.5]} 15... e5 {[%clk 0:03:54.6]} 16. dxe5 {[%clk 0:04:29.7]} 16... Qxe5
{[%clk 0:03:53]} 17. O-O-O {[%clk 0:04:29]} 17... b5 {[%clk 0:03:43.4]} 18. Re1
{[%clk 0:04:25.5]} 18... Nd7 {[%clk 0:03:36.9]} 19. Bg2 {[%clk 0:04:23.1]} 19...
b4 {[%clk 0:03:20]} 20. Nd1 {[%clk 0:04:21.5]} 20... Nc5 {[%clk 0:03:14.2]} 21.
Qe2 {[%clk 0:04:03.3]} 21... Na4 {[%clk 0:02:56.7]} 22. f4 {[%clk 0:03:48.2]}
22... gxf4 {[%clk 0:02:51.2]} 23. exf4 {[%clk 0:03:46.9]} 23... Qxf4+ {[%clk
0:02:28]} 24. Kb1 {[%clk 0:03:45.3]} 24... Qd4 {[%clk 0:02:14.5]} 25. Rhf1
{[%clk 0:03:32]} 25... Nc5 {[%clk 0:01:14.9]} 26. Rf5 {[%clk 0:02:41.5]} 26...
Kf7 {[%clk 0:00:57.1]} 27. Qe7+ {[%clk 0:02:21.5]} 27... Kg8 {[%clk 0:00:52.6]}
28. Rxf6 {[%clk 0:01:37.5]} 28... Qxf6 {[%clk 0:00:42.2]} 29. Qxc5 {[%clk
0:01:35.6]} 29... Kh7 {[%clk 0:00:31.7]} 30. Rf1 {[%clk 0:01:20.8]} 30... Qe6
{[%clk 0:00:29.9]} 31. Qxb4 {[%clk 0:01:08]} 31... Rhe8 {[%clk 0:00:24.9]} 32.
Qc3 {[%clk 0:01:02]} 32... Qe2 {[%clk 0:00:21.4]} 33. Qd3+ {[%clk 0:00:51.4]}
33... Qxd3 {[%clk 0:00:20]} 34. cxd3 {[%clk 0:00:51.3]} 34... Re2 {[%clk
0:00:18]} 35. Bf3 {[%clk 0:00:51]} 35... Re6 {[%clk 0:00:13.6]} 36. Nc3 {[%clk
0:00:48.5]} 36... Rb8 {[%clk 0:00:11.6]} 37. Na4 {[%clk 0:00:40.5]} 37... d4
{[%clk 0:00:10.8]} 38. Nc5 {[%clk 0:00:38.5]} 38... Rf6 {[%clk 0:00:10.5]} 39.
Be4+ {[%clk 0:00:36.2]} 39... Kg8 {[%clk 0:00:09.3]} 40. Rc1 {[%clk 0:00:33.1]}
40... Rbf8 {[%clk 0:00:07.9]} 41. Nd7 {[%clk 0:00:31.8]} 41... Rf1 {[%clk
0:00:06.7]} 42. Nxf8 {[%clk 0:00:30.7]} 42... Rxf8 {[%clk 0:00:05.5]} 43. Rxc6
{[%clk 0:00:28.5]} 43... Rf1+ {[%clk 0:00:05.2]} 44. Rc1 {[%clk 0:00:25.8]}
44... Rf4 {[%clk 0:00:05.1]} 45. Rc8+ {[%clk 0:00:23.9]} 45... Kf7 {[%clk
0:00:04.5]} 46. Rc7+ {[%clk 0:00:23]} 46... Ke6 {[%clk 0:00:03.1]} 47. Bf5+
{[%clk 0:00:21.8]} 47... Kf6 {[%clk 0:00:01.5]} 48. Rxa7 {[%clk 0:00:20.7]} 1-0